Cogmind - Beta 16.1 @@@ ROGUE MODE // 2026.04.15 @ 15:25:40 Player: Thqwib-Linux Result: Self-destructed Performance ------------- Evolutions (3) 1500 Regions Visited (6) 1200 Robots Destroyed (131) 655 Value Destroyed (3567) 3567 Prototype IDs (33) 660 Alien Tech Used (0) 0 Bonus (544) 544 TOTAL SCORE: 8126 Bonus ------- High Alert Combat Kills 244 Aligned with FarCom 300 Cogmind --------- Core Integrity 562/700 Matter 262/300 Energy 290/290 System Corruption 5% Temperature Warm (116) Movement Treading (325) Ox2 Location -7/Factory Parts ------- > --- POWER (1) -------- Improved Deuterium Engine > --- PROPULSION (4) --- Armored Treads Medium Treads Compact Wheel > --- UTILITY (5) ------ Huge Storage Unit Advanced Targeting Computer Graphene Brace > --- WEAPON (3) ------- Gauss Rifle Gauss Rifle Gauss Cannon > --- INVENTORY (25) --- Improved Deuterium Engine Improved Treads Compact Wheel Structural Scanner Weapon Cycler Transmission Jammer Improved Weapon Shielding Improved Light Armor Plating Improved Medium Armor Plating High-powered Tractor Beam Gatling Laser Plasma Cannon Heavy Assault Rifle Improved Assault Rifle Enhanced Autogun Enhanced Autogun Enhanced Autogun Precision Assault Rifle Precision Assault Rifle Precision Assault Rifle Rocket Launcher Plasma Cutter Peak State ------------ > --- POWER ------------ Improved Deuterium Engine > --- PROPULSION ------- Armored Treads Medium Treads Compact Wheel Compact Wheel > --- UTILITY ---------- Huge Storage Unit Advanced Targeting Computer Improved Medium Armor Plating Graphene Brace Hardlight Generator > --- WEAPON ----------- Gauss Rifle Gauss Rifle Gauss Cannon > --- INVENTORY -------- Improved Deuterium Engine Improved Treads Compact Wheel Structural Scanner Weapon Cycler Transmission Jammer Improved Weapon Shielding Improved Light Armor Plating Improved Medium Armor Plating High-powered Tractor Beam Gatling Laser Plasma Cannon Heavy Assault Rifle Improved Assault Rifle Enhanced Autogun Enhanced Autogun Enhanced Autogun Precision Assault Rifle Precision Assault Rifle Precision Assault Rifle Rocket Launcher Plasma Cutter [Rating: 50] Favorites ----------- Power Improved Ion Engine Engine Improved Ion Engine Propulsion Compact Wheel Treads Advanced Treads Leg Potential Leg Wheel Compact Wheel Utility Large Storage Unit Device Shield Generator Storage Large Storage Unit Processor Advanced Targeting Computer Hackware Hacking Suite Protection Improved Medium Armor Plating Weapon Enhanced Autogun Energy Gun Medium Laser Energy Cannon Heavy Particle Cannon Ballistic Gun Enhanced Autogun Ballistic Cannon Light Cannon Launcher Rocket Launcher Build | -11 -10 -10 -10 -9 -8 -7 ------- Run | Yrd Mat Min Exi Min Mat Fac Slots Evolved 6 | . . . . . 4 2 Power . | . . . . . . . Propulsion 2 | . . . . . 2 . Utility 3 | . . . . . 2 1 Weapon 1 | . . . . . . 1 Parts Attached 85 | 3 11 1 2 . 47 21 Power 8 | . 2 . . . 4 2 Engine 8 | . 2 . . . 4 2 Core . | . . . . . . . Reactor . | . . . . . . . Propulsion 28 | 2 2 1 2 . 15 6 Treads 9 | 1 1 . . . 5 2 Leg 4 | . . . 2 . 2 . Wheel 15 | 1 1 1 . . 8 4 Hover . | . . . . . . . Flight . | . . . . . . . Utility 30 | 1 3 . . . 18 8 Device 14 | 1 . . . . 7 6 Storage 4 | . 1 . . . 2 1 Processor 2 | . . . . . 2 . Hackware 1 | . . . . . . 1 Protection 9 | . 2 . . . 7 . Artifact . | . . . . . . . Weapon 19 | . 4 . . . 10 5 Energy Gun 2 | . 1 . . . 1 . Energy Cannon 1 | . . . . . 1 . Ballistic Gun 12 | . 2 . . . 6 4 Ballistic Cannon 3 | . 1 . . . 1 1 Launcher 1 | . . . . . 1 . Special Weapon . | . . . . . . . Impact Weapon . | . . . . . . . Slashing Weapon . | . . . . . . . Piercing Weapon . | . . . . . . . Special Melee Weapon . | . . . . . . . Unidentified Prototypes 3 | . . . . . 2 1 Parts Lost 11 | . . . . . 7 4 Power 1 | . . . . . . 1 Propulsion 3 | . . . . . 2 1 Utility 6 | . . . . . 4 2 Weapon 1 | . . . . . 1 . Highest Loss Streak 3 | . . . . . 2 3 To Critical Strikes . | . . . . . . . Average Backups 15 | 4 10 15 14 15 15 20 Power 1 | 1 1 1 1 1 1 1 Propulsion 1 | 2 2 2 1 2 1 1 Utility 5 | . 3 5 5 5 5 8 Weapon 6 | 1 3 6 6 6 6 8 Tool/Special . | . . . . . . . Unused Backups 40 | 8 6 1 . . 13 12 Power 10 | 1 3 . . . 5 1 Propulsion 7 | 4 . 1 . . 1 1 Utility 6 | 1 1 . . . . 4 Weapon 16 | 2 2 . . . 7 5 Tool/Special 1 | . . . . . . 1 Average Slot Usage (%) 98 | . 99 100 99 100 96 99 Engine 10 | . 14 14 14 14 9 7 Treads 13 | . 14 14 7 . 13 15 Leg 2 | . . . 12 28 4 . Wheel 13 | . 13 14 7 . 14 15 Device 6 | . . . . . 8 12 Storage 10 | . 14 14 14 14 9 7 Processor 4 | . . . . . 5 7 Hackware 1 | . . . . . . 5 Protection 11 | . 13 14 14 14 13 3 Energy Gun 1 | . 3 . . . . . Ballistic Gun 15 | . 15 14 14 14 15 18 Ballistic Cannon 4 | . 9 14 14 14 1 1 Peak Build Rating 50 | 7 11 11 29 29 41 50 Average Rating 26 | 6 7 11 19 29 31 41 On Entrance 18 | 6 7 11 11 29 29 35 Avg Prop Armor Cover (%) 11 | 12 7 9 9 . 12 15 Naked Turns . | . . . . . . . Heaviest Build 119 | 15 37 37 37 37 70 119 Greatest Support 80 | 10 20 16 60 60 80 32 Greatest Overweight (x) 12 | 1 2 2 12 . 2 3 Average Overweight (x) 1 | 1 1 2 . . 1 2 Largest Inventory Capacity 25 | 8 15 15 15 15 20 25 Average Capacity 17 | 8 14 15 15 15 16 22 Most Carried 25 | 8 15 15 15 15 20 25 Average Carried 15 | 4 10 14 14 15 15 20 Final Capacity 25 | 8 15 15 15 15 20 25 Final Carried 22 | 4 15 15 15 15 19 22 Class Distribution -------------------- 67% | Mutant 17% | Scavenger-Skirmisher 12% | Scavenger-Mutant 3% | Tank Dominant Class ---------------- Mutant | -10/Materials Mutant | -10/Mines Mutant | -10/Exiles Mutant | -9/Mines Mutant | -8/Materials Scavenger-Skirmisher | -7/Factory Resources | -11 -10 -10 -10 -9 -8 -7 ----------- Run | Yrd Mat Min Exi Min Mat Fac Matter Collected 4248 | 250 334 128 . . 2423 1113 Remotely 858 | . . . . . 211 647 Salvage Created 5095 | 103 631 240 . . 2862 1259 Parts 235 | 8 44 4 . . 129 50 Haulers Intercepted 9 | . 2 . . . 6 1 Recyclers Shooed 12 | 1 4 1 . . 4 2 Parts Field Recycled . | . . . . . . . Retrieved Matter . | . . . . . . . Parts Self-Destructed . | . . . . . . . Prevented . | . . . . . . . Parts Restored . | . . . . . . . Kills | -11 -10 -10 -10 -9 -8 -7 ------- Run | Yrd Mat Min Exi Min Mat Fac Combat Hostiles Destroyed 82 | . 12 2 . . 50 18 Guns 61 | . 12 1 . . 38 10 Cannons 17 | . . 1 . . 9 7 AOE 4 | . . . . . 3 1 Classes Destroyed 18 | 2 6 . . . 7 3 Worker 6 | . 1 . . . 3 2 Builder 3 | . . . . . 2 1 Tunneler 5 | 3 1 . . . 1 . Hauler 9 | . 2 . . . 6 1 Recycler 19 | 1 3 2 . . 7 6 Mechanic 1 | . . . . . 1 . Operator 3 | . 1 . . . 2 . Watcher 3 | . 2 . . . 1 . Swarmer 20 | . 9 . . . 11 . Grunt 36 | . 3 2 . . 26 5 Brawler 3 | . . . . . 3 . Duelist 1 | . . . . . 1 . Protector 1 | . . . . . . 1 Sentry 8 | . . . . . 7 1 Specialist 2 | . . . . . . 2 Hunter 7 | . . . . . 1 6 Programmer 3 | . . . . . . 3 Heavy 1 | . . . . . 1 . Best Kill Streak 11 | 2 3 2 . . 5 11 Combat Bots Only 8 | . 3 1 . . 5 8 Max Kills in Single Turn 3 | 1 2 1 . . 3 2 Gunslinging 1 | . 1 . . . 1 . Exploded 2 | . . . . . 2 1 Melee . | . . . . . . . Uniques/NPCs Destroyed . | . . . . . . . Combat | -11 -10 -10 -10 -9 -8 -7 -------- Run | Yrd Mat Min Exi Min Mat Fac Hostile Shots Fired 454 | . 43 13 . . 267 131 Missed 130 | . 12 2 . . 78 38 Hits 324 | . 31 11 . . 189 93 Melee 6 | . . . . . 6 . Projectile 318 | . 31 11 . . 183 93 Critical Strikes 9 | . . . . . 6 3 Actively Blocked 1 | . . . . . . 1 Damage Taken 4480 | . 282 165 . . 2735 1298 Core 480 | . 61 26 . . 255 138 Absorbed by Shields 467 | . . . . . 295 172 Regen/Repaired (Parts) 385 | . 90 . . . 114 181 Core Remaining (%) 72 | 100 . . . 65 53 . Volleys Fired 401 | 13 46 14 . . 259 69 Largest 3 | 2 2 2 . . 2 3 Hottest 125 | 70 70 50 . . 100 125 Shots Fired 825 | 26 91 28 . . 496 184 Gun 691 | 26 84 14 . . 418 149 Cannon 112 | . 7 14 . . 64 27 Launcher 22 | . . . . . 14 8 Special . | . . . . . . . Kinetic 717 | 13 59 28 . . 451 166 Thermal 86 | 13 32 . . . 31 10 Explosive 22 | . . . . . 14 8 Electromagnetic . | . . . . . . . Robot Hit Streak 26 | 6 9 7 . . 26 16 Robot Miss Streak 5 | 4 3 2 . . 5 3 Penetration Max 1 | . . . . . . 1 Secondary Targets 10 | . 1 . . . 7 2 Max Gunslinging Chain 1 | . 1 . . . 1 1 Shots Hit Robots 557 | 16 56 19 . . 349 117 Core Hits 237 | 5 30 8 . . 138 56 Critical Kills . | . . . . . . . Critical Parts Destroyed 1 | . . . . . 1 . Critical Strikes 9 | . 2 . . . 6 1 Burn 5 | . 2 . . . 3 . Destroy 1 | . . . . . 1 . Blast 3 | . . . . . 2 1 Melee Attacks . | . . . . . . . Impact . | . . . . . . . Slashing . | . . . . . . . Piercing . | . . . . . . . Sneak Attacks . | . . . . . . . Combat Hostiles . | . . . . . . . Follow-up Attacks . | . . . . . . . Damage Inflicted 10761 | 201 724 271 . . 6875 2690 Guns 7632 | 201 638 136 . . 4809 1848 Cannons 1604 | . 86 135 . . 722 661 Explosions 1460 | . . . . . 1298 162 Melee . | . . . . . . . Ramming 65 | . . . . . 46 19 Kinetic 8229 | 102 448 271 . . 5124 2284 Thermal 1007 | 99 276 . . . 407 225 Explosive 1460 | . . . . . 1298 162 Electromagnetic . | . . . . . . . Impact . | . . . . . . . Slashing . | . . . . . . . Piercing . | . . . . . . . Highest Corruption 5 | . 1 1 1 1 2 5 Average Corruption 1 | . 1 1 1 1 2 3 Corruption Purged . | . . . . . . . Corruption Blocked . | . . . . . . . Effects 40 | . 11 5 4 1 5 14 Message Errors 6 | . . . 2 . 2 2 Matter Fused 7 | . 3 . 1 . 1 2 Heat Flow Errors 7 | . 3 1 . . 1 2 Energy Discharges 6 | . 2 2 . . . 2 Data Loss (minor) 2 | . . 1 . . . 1 Data Loss (major) 4 | . 2 . 1 . . 1 Misfires 1 | . . . . . 1 . Alerts 3 | . . 1 . 1 . 1 Weapon Failures 4 | . 1 . . . . 3 Overload Shots . | . . . . . . . Overflow Damage 65 | . . . . . 36 29 Projectiles 44 | . . . . . 22 22 Explosions 19 | . . . . . 14 5 Melee 2 | . . . . . . 2 Knockbacks 12 | . . 1 . . 10 1 Impact 1 | . . . . . 1 . Kinetic 8 | . . . . . 7 1 Secondary 3 | . . 1 . . 2 . Self-Inflicted Damage 93 | . . . . . 79 14 Shots 3 | . . . . . 2 1 Rammed 6 | . . . . . 3 3 Targets Rammed 8 | . . . . . 5 3 Kicked 2 | . . . . . 2 . Crushed . | . . . . . . . Highest Temperature 334 | 81 334 227 . . 308 175 Average Temperature 59 | 38 94 67 . . 46 69 Received Heat Transfer 1459 | . 60 93 . . 1098 208 Effects 10 | . 3 . . . 7 . Energy Bleed 4 | . . . . . 4 . Interference 5 | . 2 . . . 3 . Damage (minor) 1 | . 1 . . . . . Siege Activations . | . . . . . . . Martial Activations . | . . . . . . . Shielding Activations . | . . . . . . . Robots Disrupted . | . . . . . . . Combat Hostiles . | . . . . . . . Robots Corrupted . | . . . . . . . Combat Hostiles . | . . . . . . . Parts Fried 2 | . . . . . . 2 Impact Corruptions 1 | . . . . . . 1 Robots Melted . | . . . . . . . Combat Hostiles . | . . . . . . . Parts Melted 4 | 1 . . . . 3 . Heat Transferred 2627 | 296 962 . . . 1036 333 Parts Sabotaged . | . . . . . . . Parts Stolen . | . . . . . . . Parts Stripped . | . . . . . . . Power Chain Reactions . | . . . . . . . Alert | -11 -10 -10 -10 -9 -8 -7 ------- Run | Yrd Mat Min Exi Min Mat Fac Maximum Alert Level 3 | . . . . . 3 2 Low Security (%) 45 | 100 100 100 . 100 24 20 Level 1 30 | . . . . . 31 70 Level 2 22 | . . . . . 42 8 Level 3 . | . . . . . 1 . Level 4 . | . . . . . . . Level 5 . | . . . . . . . High Security . | . . . . . . . Max Security . | . . . . . . . Sterilizations 1 | . . . . . 1 . Peak Influence 737 | 10 153 55 . . 737 421 Initial 247 | . . . . . . 247 Average 227 | 2 32 20 . . 333 251 Influence Increases 2902 | 20 382 75 . . 1753 672 Destroy 0b10 Robot/C 1620 | . 240 40 . . 1000 340 Destroy 0b10 Robot/NC 250 | 20 50 10 . . 115 55 Destroy Leader 354 | . 48 10 . . 224 72 Successful Hack 81 | . 28 . . . 34 19 Disable Machine 150 | . 15 15 . . 45 75 Destroy Structure 147 | . 1 . . . 95 51 Partial Spotted 15 | . . . . . 15 . Lose Combat Pursuer 285 | . . . . . 225 60 Influence Decreases 2547 | 20 382 70 5 . 1209 861 Entered New Map 302 | . . . 5 . . 297 Time Decay 1670 | 20 377 70 . . 689 514 Lost Part 110 | . . . . . 70 40 Lost Ally 10 | . . . . . . 10 Purge Threat 455 | . 5 . . . 450 . Squads Dispatched 19 | . 1 . . . 10 8 Investigation 5 | . . . . . 3 2 Extermination 3 | . . . . . . 3 Reinforcement 7 | . 1 . . . 5 1 Assault 1 | . . . . . 1 . Garrison 3 | . . . . . 1 2 Intercept . | . . . . . . . Searches Triggered . | . . . . . . . Construction Impeded 2 | . . . . . 2 . Haulers Reinforced . | . . . . . . . Active Scanning Responses . | . . . . . . . Cargo Convoy Interrupts 1 | . . . . . . 1 Stealth | -11 -10 -10 -10 -9 -8 -7 --------- Run | Yrd Mat Min Exi Min Mat Fac Distress Signals 6 | . 2 . . . 4 . Communications Jammed . | . . . . . . . Distress Signals . | . . . . . . . Times Spotted 141 | . 16 2 . . 90 33 Peak Tracking Total 10 | . 4 2 . . 7 10 Tactical Retreats 16 | . . . . . 13 3 Traps | -11 -10 -10 -10 -9 -8 -7 ------- Run | Yrd Mat Min Exi Min Mat Fac Traps Triggered 5 | . . . . . 3 2 Indirectly . | . . . . . . . Trap Hack Attempts . | . . . . . . . Triggered . | . . . . . . . Disarmed . | . . . . . . . Reprogrammed . | . . . . . . . Reused . | . . . . . . . Traps Extracted . | . . . . . . . Installed . | . . . . . . . Triggered . | . . . . . . . Machines | -11 -10 -10 -10 -9 -8 -7 ---------- Run | Yrd Mat Min Exi Min Mat Fac Machines Disabled 10 | . 1 1 . . 3 5 Max in Single Turn 4 | . 1 1 . . 1 4 Machines Repaired . | . . . . . . . Machines Dismantled . | . . . . . . . Machines Sabotaged . | . . . . . . . Overloaded Fab Kills . | . . . . . . . Hacking | -11 -10 -10 -10 -9 -8 -7 --------- Run | Yrd Mat Min Exi Min Mat Fac Machines Accessed 32 | . 8 . 2 . 14 8 Terminals 19 | . 7 . . . 10 2 Fabricators 1 | . . . . . . 1 Repair Stations 6 | . 1 . . . 2 3 Recycling Units 1 | . . . . . . 1 Scanalyzers 3 | . . . . . 2 1 Garrison Access . | . . . . . . . Total Hacks 118 | . 34 . 2 . 54 28 Successful 70 | . 18 . 2 . 32 18 Failed 46 | . 15 . . . 21 10 Catastrophic 6 | . 2 . . . 4 . Database Lockouts 2 | . 1 . . . 1 . Manual 55 | . 21 . 1 . 29 4 Terminals 70 | . 28 . . . 35 7 Fabricators 4 | . . . . . . 4 Repair Stations 22 | . 6 . . . 7 9 Recycling Units 3 | . . . . . . 3 Scanalyzers 17 | . . . . . 12 5 Garrison Access . | . . . . . . . Terminal Hacks 22 | . 9 . 2 . 9 2 Record 1 | . . . 1 . . . Part Schematic 3 | . 1 . . . 1 1 Robot Analysis 3 | . 3 . . . . . Prototype ID Bank 5 | . 3 . . . 2 . Terminal Index 1 | . . . . . 1 . Alert Level 1 | . . . . . 1 . Unreport Threat 4 | . 1 . . . 3 . Transport Status 2 | . 1 . . . 1 . Hauler Manifests 1 | . . . . . . 1 Proto ID Catalog 1 | . . . 1 . . . Fabricator Hacks 2 | . . . . . . 2 Load Schematic 1 | . . . . . . 1 Build 1 | . . . . . . 1 Repair Station Hacks 14 | . 4 . . . 4 6 Scan Component 8 | . 2 . . . 2 4 Repair 6 | . 2 . . . 2 2 Recycling Unit Hacks 2 | . . . . . . 2 Process 1 | . . . . . . 1 Report Inventory 1 | . . . . . . 1 Scanalyzer 13 | . . . . . 10 3 Insert Component 5 | . . . . . 4 1 Analyze 4 | . . . . . 3 1 Retrieve Study 4 | . . . . . 3 1 Garrison Access Hacks . | . . . . . . . Unauthorized Hacks 17 | . 5 . . . 9 3 Terminals 17 | . 5 . . . 9 3 Assimilate 2 | . . . . . 1 1 Botnet 15 | . 5 . . . 8 2 Fabricators . | . . . . . . . Repair Stations . | . . . . . . . Recycling Units . | . . . . . . . Scanalyzers . | . . . . . . . Garrison Access . | . . . . . . . Data Cores Recovered 2 | . . . . . 2 . Used 2 | . . . . . 2 . Hacking Detections 29 | . 8 . . . 13 8 Full Trace Events 4 | . 1 . . . 1 2 Feedback Events 1 | . 1 . . . . . Corruption 1 | . 1 . . . . . Feedback Blocked . | . . . . . . . Robot Schematics Acquired . | . . . . . . . Robots Built . | . . . . . . . Authchips . | . . . . . . . Time . | . . . . . . . Total Robot Build Rating . | . . . . . . . Part Schematics Acquired 7 | . 1 . . . 4 2 Parts Built 1 | . . . . . . 1 Authchips . | . . . . . . . Time 51 | . . . . . . 51 Total Part Build Rating 1 | . . . . . . 1 Part Studies Acquired 4 | . . . . . 3 1 Parts Repaired 6 | . 2 . . . 2 2 Time 252 | . 52 . . . 108 92 Parts Recycled . | . . . . . . . Recycled Matter 1 | . . . . . . 1 Retrieved Matter . | . . . . . . . Retrieved Components . | . . . . . . . Parts Scanalyzed 4 | . . . . . 3 1 Part Schematics Acquired 4 | . . . . . 3 1 Parts Damaged 1 | . . . . . 1 . Bothacking | -11 -10 -10 -10 -9 -8 -7 ------------ Run | Yrd Mat Min Exi Min Mat Fac Used RIF Installer . | . . . . . . . Robots Hacked . | . . . . . . . Non-combat . | . . . . . . . Combat . | . . . . . . . Robot Hacks Applied . | . . . . . . . Relay Couplers Released . | . . . . . . . Fabnet Peak Effective % . | . . . . . . . Robots Rewired . | . . . . . . . Allies Hacked . | . . . . . . . Hacks Repelled . | . . . . . . . Allies | -11 -10 -10 -10 -9 -8 -7 -------- Run | Yrd Mat Min Exi Min Mat Fac Total Allies 1 | . . . . . . 1 Largest Group 1 | . . . . . . 1 Highest-Rated Group 10 | . . . . . . 10 Highest-Rated Ally 10 | . . . . . . 10 Total Orders . | . . . . . . . Ally Attacks . | . . . . . . . Total Damage . | . . . . . . . Kills . | . . . . . . . Allies Corrupted . | . . . . . . . Allies Melted . | . . . . . . . Intel | -11 -10 -10 -10 -9 -8 -7 ------- Run | Yrd Mat Min Exi Min Mat Fac Active Infowar (turns) 857 | 6 31 . . . . 820 Structural 820 | . . . . . . 820 Seismic 37 | 6 31 . . . . . Robot Analysis Total 3 | . 3 . . . . . Derelict Logs Recovered 2 | . . 2 . . . . Drone Launches . | . . . . . . . Drone Recoveries . | . . . . . . . Exploration | -11 -10 -10 -10 -9 -8 -7 ------------- Run | Yrd Mat Min Exi Min Mat Fac Turns Passed 6721 | 82 1544 219 290 15 3165 1406 Spaces Moved 4188 | 11 891 134 258 17 2039 838 Core 1 | . . . 1 . . . Treads 300 | . 206 . . . 94 . Legs 633 | . . . 147 17 469 . Wheels 3254 | 11 685 134 110 . 1476 838 Hover . | . . . . . . . Flight . | . . . . . . . Fastest Speed 45 | 95 95 130 90 90 45 105 Average Speed 120 | 95 147 130 109 90 108 121 Slowest Speed 650 | 95 240 130 650 90 225 135 Overloaded Moves 9 | . . . . . 9 . Propulsion Burnouts . | . . . . . . . Robots Hopped . | . . . . . . . Potential Cave-ins . | . . . . . . . Cave-ins Triggered . | . . . . . . . Exploration Rate (%) 45 | 3 96 35 59 10 95 20 Regions Visited 6 Branch Regions 3 Pre-discovered Areas 1 | . . . 1 . . . Known Exits Taken 1 | . . 1 . . . . Unknown Exits Taken 5 | 1 1 . 1 1 1 . Scrap Searched . | . . . . . . . Spaces Dug 52 | . . . . . 22 30 Terrain Destroyed 186 | . . . . . 111 75 Melee . | . . . . . . . Projectile 8 | . . . . . 8 . AOE 178 | . . . . . 103 75 Terrain Rammed . | . . . . . . . Walls Destroyed . | . . . . . . . Machines Disabled . | . . . . . . . Actions | -11 -10 -10 -10 -9 -8 -7 --------- Run | Yrd Mat Min Exi Min Mat Fac Total 5286 | 57 1034 152 267 16 2643 1117 Wait 424 | 27 56 1 . . 192 148 Move 4182 | 10 890 133 257 16 2038 838 Hop . | . . . . . . . Pick Up 65 | . 14 1 3 . 37 10 Fast Attach 15 | 1 4 . 2 . 7 1 Attach 19 | 2 . . . . 12 5 Detach 10 | 2 2 . . . 4 2 Swap 86 | . 9 1 . . 45 31 Drop 76 | 2 13 2 5 . 44 10 Fire 401 | 13 46 14 . . 259 69 Melee . | . . . . . . . Ram 1 | . . . . . 1 . Kick 2 | . . . . . 2 . Crush 5 | . . . . . 2 3 Escape Stasis . | . . . . . . . Rewire . | . . . . . . . Trap . | . . . . . . . Miscellaneous . | . . . . . . . Route ------- -11/Scrapyard -10/Materials (discovered 5 exits: [*Mat x3] / [*Min x2]) -10/Mines (discovered 3 exits: [*Mat x2] / *Exi) -10/Exiles -9/Mines -8/Materials (discovered 3 exits: *Fac x3) -7/Factory (discovered 1 exit: [*Fac]) History --------- Turn | Location | Event 14 | -11/Scrapyard | Discovered new exit (range 2) 83 | -11/Scrapyard | Entered Materials 312 | -10/Materials | Build established: Mutant 370 | -10/Materials | Discovered new exit (range 12) 387 | -10/Materials | Central database locked down 516 | -10/Materials | Discovered new exit (range 16) 607 | -10/Materials | Discovered new exit (range 16) 929 | -10/Materials | Repaired Lgt. Armor Plating 956 | -10/Materials | Repaired Com. Wheel 1269 | -10/Materials | Discovered new exit (range 8) 1595 | -10/Materials | Discovered new exit (range 15) 1627 | -10/Materials | Entered Mines 1634 | -10/Mines | Learned Materials security intel 1653 | -10/Mines | Discovered new exit (range 5) 1678 | -10/Mines | Discovered new exit (range 5) 1771 | -10/Mines | A weapon hastily lodged in a ceiling crevice suddenly fell to the ground 1820 | -10/Mines | Identified exit to Exiles 1841 | -10/Mines | Deemed a non-threat by the Exiles lab entrance 1846 | -10/Mines | Entered Exiles 1879 | -10/Exiles | Met 8R-AWN 1900 | -10/Exiles | Met EX-HEX 1936 | -10/Exiles | Met EX-BIN 1952 | -10/Exiles | Aligned with FarCom system 1953 | -10/Exiles | Given EX-Vault access code 1983 | -10/Exiles | Opened EX-Vault 1997 | -10/Exiles | Found Potential Leg 2000 | -10/Exiles | Found Potential Leg 2054 | -10/Exiles | Warned to stay clear of 0b10 Research branches 2080 | -10/Exiles | Met EX-DEC 2084 | -10/Exiles | Learned location of Zion (-7) 2125 | -10/Exiles | Discovered new exit (range 14) 2136 | -10/Exiles | Left Exiles lab with Potential Leg 2136 | -10/Exiles | Entered Mines 2138 | -9/Mines | Discovered new exit (range 14) 2151 | -9/Mines | Entered Materials 2151 | -8/Materials | Evolved 4 slots: Propulsion x2, Utility x2 3024 | -8/Materials | Build established: Scavenger-Mutant 3039 | -8/Materials | Central database locked down 3251 | -8/Materials | Discovered new exit (range 11) 3289 | -8/Materials | Repaired Broken Enh. Autogun 3388 | -8/Materials | Repaired Hrd. Light Armor Plating 3696 | -8/Materials | Build established: Mutant 3961 | -8/Materials | Discovered new exit (range 4) 4951 | -8/Materials | First assault squad dispatched 4965 | -8/Materials | Garrison activated, responded to threat 5251 | -8/Materials | Discovered new exit (range 14) 5314 | -8/Materials | Sterilization system engaged 5314 | -8/Materials | Non-combat units ordered to evacuate 5316 | -8/Materials | Entered Factory 5316 | -7/Factory | Evolved 2 slots: Utility x1, Weapon x1 5404 | -7/Factory | Discovered new exit (range 6) 5503 | -7/Factory | Repaired Enh. Autogun 5611 | -7/Factory | Build established: Scavenger-Skirmisher 5940 | -7/Factory | Fabricated Huge Storage Unit (x1) 6213 | -7/Factory | Repaired Rocket Launcher? 6460 | -7/Factory | Cargo convoy interrupted 6518 | -7/Factory | Garrison activated, responded to threat 6532 | -7/Factory | Destroyed 8 combat bots 6722 | -7/Factory | Self-destructed Last Messages --------------- 06574_ K-01 Serf collects debris. 06579_ System corrupted: Matter fused (-5). 06621_ JYAFFW93JCBIQY:9D7J&,UF K&R 06651_ Dropped Arm. Treads. 06710_ ALERT: Potential suspicious activity detected, Programmers report to Factory Zone 5K. 06714_ Cooling System blasted off. 06714_ Knocked back. 06716_ Slug penetrates Wall. 06716_ H-61 Shepherd calls for reinforcements. 06716_ ALERT: Hostile activity reported, dispatching reinforcements to area. 06717_ Hardlight Generator destroyed. 06717_ Slug penetrates Wall. 06718_ System corrupted: Component data lost. 06718_ Imp. Medium Armor Plating destroyed. 06719_ Slug penetrates H-61 Shepherd. 06720_ Y-54 Guardian emerges from the garrison. 06722_ Com. Wheel+ destroyed. Map ----- +----------------------------------------------------+ | # ??? # " " #?????????# # ????????? | | # ??? # " " #?????????# # ????????? | | # ??? # " " ##?????????+ ???????? | | # ??? # " " ############ ????????? | | # # " " ############ #???????????? | | ####### " " # """"" + #???????????? | | ! [ # """"" # #???????????? | | ! = # """ ! # #???????????? | | [* # # ??????? | | !! +% # ####################?? | | !* #^ # #????????# + """ # # | | ##### % ############ #????????# ## """ + # | | ## ##### # #???????## ##= """ # | | "" ## ^ ] """##"""" # ######### ==# #?? | | "" ## R"##"""" + " %! % + #?? | | ##### """##"""" # ######### %=# #?? | | ##### """ #####"""" # #???????##*#########?? | | ##### ^"R !##### ?# #????????#%#?????????? | | ######## """[%##########?# #????????#%#?????????? | | """ |##########?# ###??????#!#?????????? | | ??????#=#?????????? | | ########???#### #?????# #?????????? | | ############################## ##??###+######????? | | ################# % ; ;???# #????? | | # ??????????????# ""gg !!! #g#???# """ #????? | | # ??????????????# "GYH !@!! # ##### """ +????? | | # ??????????????# ""g !!! # # """ #????? | | # ??????????????# % % # # #????? | | # ??????????????#= g # """ #????? | | + ??????????????# # + """ #????? | | # ??????????????# """ """ # # """ #????? | | # ??????????????# """ """ # # #????? | | # ??????????????# """ """ # ############### | | # ???????????????? # #???????# | | # ???????????????? # #???????# | | ??????????#################### #???????# | | ??????????# + #???????# | | ??????????# # #???????# | | ??????????# # #???????# # | | ?????????????"""""" """"""" # ######### # | | ????????????????""" """"""" # # | | ?????????????????"" """"""" # # | | ??????????????????" """"""" # # | | ?????????????????? # # | | ?????????????????????######### # | | ????????????????????????????#####+################ | | ????????????????????????????# #??????????? | | ????????????????????????????# #??????????? | | ????????????????????????????# =#??????????? | | ????????????????????????????# #??????????? | +----------------------------------------------------+ Best States ------------- Heat Dissipation 56 Energy Generation 16 Energy Capacity 290 Matter Stores 300 Matter Capacity 300 Sight Range 16 Terrain Scan Density 10 Base Temperature (-) 100 Armor Coverage 450 Evasion (%) 57 Targeting Accuracy 8 Recoil Reduction 2 Offensive Hacking 10 Item Schematics ----------------- Huge Storage Unit | -10/Materials | Hacked Hacking Suite | -8/Materials | Hacked Enh. Autogun | -8/Materials | Scanalyzed Hrd. Light Armor Plating | -8/Materials | Scanalyzed Shield Generator | -8/Materials | Scanalyzed Graphene Brace | -7/Factory | Scanalyzed Arm. Huge Wheel | -7/Factory | Hacked Robot Schematics ------------------ None Fabricated ------------ Huge Storage Unit | x1 | -7/Factory Repaired ---------- Lgt. Armor Plating | 10% | -10/Materials Com. Wheel | 70% | -10/Materials Enh. Autogun | 99% | -8/Materials | Broken Hrd. Light Armor Plating | 36% | -8/Materials Enh. Autogun | 14% | -7/Factory Rocket Launcher | 37% | -7/Factory Studied --------- Com. Wheel | -8/Materials | Hacked Hvy. Particle Cannon | -8/Materials | Hacked Lgt. Treads | -8/Materials | Hacked Gatling Laser | -7/Factory | Hacked Alien Tech Used ----------------- None Achievements -------------- None Challenges ------------ None Game ------ Seed MatterModifiedInitializer Manual? 0 Play Time 01:07:00 Cumulative 148.0 hours Start 2026.04.15 @ 14:10:54 End 2026.04.15 @ 15:25:40 Sessions 1 Manual Loads 0 Difficulty Rogue Special Mode None Game No. 100 Rogue 100 Adventurer 0 Explorer 0 Win Type - Total 5 Types 3/0/1/1/0/0/0/0/0/0 Lore% 62 Gallery% 52 Achievement% 48 Wizard Run 0 Options --------- Layout 2 ASCII 0 Keyboard 1 Movement Arrows Keybinds 0 Fullscreen 2 Font 24/Terminus Map View 50x44 Zoom Use 0% Tactical HUD 1 Map Filters NONE Filters NONE Steam 1 RUN: ecb81b0a-28b9-472d-85a9-cdabb6837006